[Event "Titled Tuesday Blitz January 31 Early 2023"]
[White "Kirillov, Dmitry"]
[Black "Ricaurte Lopez, Juan Carlos"]
[WhiteFideId "34180572"]
[BlackFideId "3600327"]
[WhiteElo "2179"]
[BlackElo "2226"]
[Result "1-0"]
[Round "03"]
[TimeControl "180+2"]
[Date "2023.01.31"]
[WhiteClock "0:00:03"]
[BlackClock "0:00:03"]

1. e4 {[%clk 0:02:57]}  e5 {[%clk 0:02:59]} 2. Nf3 {[%clk 0:02:57]}  Nc6 {[%clk 0:02:59]} 3. d4 {[%clk 0:02:57]}  exd4 {[%clk 0:02:57]} 4. c3 {[%clk 0:02:57]}  d5 {[%clk 0:02:53]} 5. exd5 {[%clk 0:02:56]}  Qxd5 {[%clk 0:02:52]} 6. cxd4 {[%clk 0:02:57]}  Bg4 {[%clk 0:02:52]} 7. Be2 {[%clk 0:02:56]}  O-O-O {[%clk 0:02:49]} 8. Nc3 {[%clk 0:02:54]}  Qh5 {[%clk 0:02:45]} 9. Be3 {[%clk 0:02:35]}  Nf6 {[%clk 0:02:37]} 10. Qa4 {[%clk 0:01:55]}  Nd5 {[%clk 0:02:18]} 11. Nxd5 {[%clk 0:01:53]}  Qxd5 {[%clk 0:02:07]} 12. O-O {[%clk 0:01:48]}  Bd6 {[%clk 0:02:00]} 13. h3 {[%clk 0:01:42]}  h5 {[%clk 0:01:53]} 14. b4 {[%clk 0:01:20]}  Bxb4 {[%clk 0:01:30]} 15. Rfc1 {[%clk 0:01:15]}  Bd7 {[%clk 0:01:23]} 16. Rxc6 {[%clk 0:01:10]}  Bxc6 {[%clk 0:01:23]} 17. Qxb4 {[%clk 0:01:08]}  f6 {[%clk 0:01:22]} 18. Bc4 {[%clk 0:01:05]}  Qe4 {[%clk 0:01:19]} 19. Rc1 {[%clk 0:00:57]}  g5 {[%clk 0:01:17]} 20. Qa5 {[%clk 0:00:39]}  g4 {[%clk 0:01:05]} 21. Ne1 {[%clk 0:00:35]}  gxh3 {[%clk 0:01:02]} 22. d5 {[%clk 0:00:25]}  Rxd5 {[%clk 0:00:31]} 23. Bxd5 {[%clk 0:00:24]}  Qxd5 {[%clk 0:00:30]} 24. Qxd5 {[%clk 0:00:25]}  Bxd5 {[%clk 0:00:29]} 25. gxh3 {[%clk 0:00:22]}  Bxa2 {[%clk 0:00:27]} 26. Ra1 {[%clk 0:00:20]}  Bd5 {[%clk 0:00:25]} 27. Rxa7 {[%clk 0:00:20]}  b6 {[%clk 0:00:25]} 28. Ra4 {[%clk 0:00:13]}  Kb7 {[%clk 0:00:23]} 29. Rf4 {[%clk 0:00:12]}  c5 {[%clk 0:00:18]} 30. Rxf6 {[%clk 0:00:11]}  Re8 {[%clk 0:00:16]} 31. h4 {[%clk 0:00:11]}  Rg8+ {[%clk 0:00:14]} 32. Kh2 {[%clk 0:00:09]}  Rg4 {[%clk 0:00:14]} 33. Rf4 {[%clk 0:00:08]}  Rxf4 {[%clk 0:00:11]} 34. Bxf4 {[%clk 0:00:09]}  b5 {[%clk 0:00:11]} 35. Be3 {[%clk 0:00:06]}  Kc6 {[%clk 0:00:10]} 36. Nd3 {[%clk 0:00:07]}  b4 {[%clk 0:00:08]} 37. Bxc5 {[%clk 0:00:05]}  Be4 {[%clk 0:00:04]} 38. Nxb4+ {[%clk 0:00:02]}  Kxc5 {[%clk 0:00:03]} 39. Na2 {[%clk 0:00:03]} 1-0


[Site "https://www.chess.com"]

[Event "Titled Tuesday Blitz January 31 Early 2023"]
[White "Novikova, Galina"]
[Black "Kiseleva, Arina"]
[WhiteFideId "4157095"]
[BlackFideId "4164989"]
[WhiteElo "2073"]
[BlackElo "1962"]
[Result "1/2-1/2"]
[Round "03"]
[TimeControl "180+2"]
[Date "2023.01.31"]
[WhiteClock "0:01:13"]
[BlackClock "0:00:07"]

1. e4 {[%clk 0:02:54]}  c6 {[%clk 0:02:59]} 2. d4 {[%clk 0:02:54]}  d5 {[%clk 0:02:59]} 3. e5 {[%clk 0:02:50]}  Bf5 {[%clk 0:02:59]} 4. Nc3 {[%clk 0:02:48]}  e6 {[%clk 0:02:57]} 5. g4 {[%clk 0:02:47]}  Bg6 {[%clk 0:02:56]} 6. Nge2 {[%clk 0:02:48]}  h5 {[%clk 0:02:55]} 7. Nf4 {[%clk 0:02:43]}  Bh7 {[%clk 0:02:55]} 8. Nxh5 {[%clk 0:02:38]}  c5 {[%clk 0:02:51]} 9. Be3 {[%clk 0:02:32]}  Nc6 {[%clk 0:02:40]} 10. Bb5 {[%clk 0:02:28]}  Qb6 {[%clk 0:02:34]} 11. Qd2 {[%clk 0:02:24]}  a6 {[%clk 0:02:23]} 12. Bxc6+ {[%clk 0:02:23]}  bxc6 {[%clk 0:02:24]} 13. O-O-O {[%clk 0:02:20]}  cxd4 {[%clk 0:02:07]} 14. Qxd4 {[%clk 0:02:21]}  Qxd4 {[%clk 0:01:58]} 15. Bxd4 {[%clk 0:02:22]}  c5 {[%clk 0:01:55]} 16. Be3 {[%clk 0:02:20]}  d4 {[%clk 0:01:56]} 17. Bxd4 {[%clk 0:02:21]}  cxd4 {[%clk 0:01:56]} 18. Rxd4 {[%clk 0:02:22]}  Bc5 {[%clk 0:01:42]} 19. Rd2 {[%clk 0:02:16]}  Ne7 {[%clk 0:01:32]} 20. Nxg7+ {[%clk 0:02:15]}  Kf8 {[%clk 0:01:32]} 21. Nh5 {[%clk 0:02:12]}  Bb4 {[%clk 0:01:20]} 22. Rhd1 {[%clk 0:02:10]}  Nd5 {[%clk 0:01:04]} 23. Nf6 {[%clk 0:02:07]}  Nxc3 {[%clk 0:00:29]} 24. Rd8+ {[%clk 0:01:52]}  Kg7 {[%clk 0:00:28]} 25. Nh5+ {[%clk 0:01:49]}  Kh6 {[%clk 0:00:28]} 26. Rxh8 {[%clk 0:01:42]}  Rxh8 {[%clk 0:00:23]} 27. bxc3 {[%clk 0:01:40]}  Ba3+ {[%clk 0:00:22]} 28. Kd2 {[%clk 0:01:36]}  Rd8+ {[%clk 0:00:19]} 29. Ke2 {[%clk 0:01:37]}  Rxd1 {[%clk 0:00:18]} 30. Kxd1 {[%clk 0:01:38]}  Kg5 {[%clk 0:00:15]} 31. f3 {[%clk 0:01:37]}  Be7 {[%clk 0:00:13]} 32. Ke2 {[%clk 0:01:35]}  Bg6 {[%clk 0:00:12]} 33. Ng3 {[%clk 0:01:35]}  Kf4 {[%clk 0:00:11]} 34. Kf2 {[%clk 0:01:27]}  Kxe5 {[%clk 0:00:09]} 35. Ne2 {[%clk 0:01:25]}  Bc5+ {[%clk 0:00:08]} 36. Kg2 {[%clk 0:01:22]}  Bxc2 {[%clk 0:00:08]} 37. h4 {[%clk 0:01:22]}  Bd3 {[%clk 0:00:06]} 38. Ng3 {[%clk 0:01:22]}  Be3 {[%clk 0:00:06]} 39. h5 {[%clk 0:01:23]}  Kd5 {[%clk 0:00:04]} 40. Kh3 {[%clk 0:01:18]}  Kc4 {[%clk 0:00:04]} 41. Kh4 {[%clk 0:01:18]}  Kxc3 {[%clk 0:00:04]} 42. g5 {[%clk 0:01:18]}  Kb2 {[%clk 0:00:03]} 43. Kg4 {[%clk 0:01:18]}  Kxa2 {[%clk 0:00:03]} 44. h6 {[%clk 0:01:18]}  a5 {[%clk 0:00:03]} 45. f4 {[%clk 0:01:19]}  Bh7 {[%clk 0:00:02]} 46. Nh5 {[%clk 0:01:18]}  a4 {[%clk 0:00:02]} 47. Nf6 {[%clk 0:01:19]}  Bg6 {[%clk 0:00:02]} 48. h7 {[%clk 0:01:18]}  Bxh7 {[%clk 0:00:02]} 49. Nxh7 {[%clk 0:01:19]}  a3 {[%clk 0:00:02]} 50. Nf6 {[%clk 0:01:18]}  Bd4 {[%clk 0:00:02]} 51. Ne4 {[%clk 0:01:17]}  Kb2 {[%clk 0:00:02]} 52. Nd2 {[%clk 0:01:16]}  a2 {[%clk 0:00:03]} 53. Nc4+ {[%clk 0:01:17]}  Kb3 {[%clk 0:00:03]} 54. Nd2+ {[%clk 0:01:17]}  Kc2 {[%clk 0:00:03]} 55. g6 {[%clk 0:01:16]}  fxg6 {[%clk 0:00:02]} 56. Ne4 {[%clk 0:01:16]}  a1=Q {[%clk 0:00:02]} 57. Ng3 {[%clk 0:01:17]}  Qg1 {[%clk 0:00:02]} 58. Kh3 {[%clk 0:01:17]}  Bf2 {[%clk 0:00:02]} 59. Ne2 {[%clk 0:01:17]}  Qh1+ {[%clk 0:00:02]} 60. Kg4 {[%clk 0:01:16]}  Qd1 {[%clk 0:00:03]} 61. Kf3 {[%clk 0:01:16]}  Bc5 {[%clk 0:00:04]} 62. f5 {[%clk 0:01:16]}  gxf5 {[%clk 0:00:04]} 63. Kf4 {[%clk 0:01:16]}  Qxe2 {[%clk 0:00:04]} 64. Kg5 {[%clk 0:01:16]}  Qg4+ {[%clk 0:00:05]} 65. Kf6 {[%clk 0:01:17]}  f4 {[%clk 0:00:06]} 66. Ke5 {[%clk 0:01:17]}  f3 {[%clk 0:00:07]} 67. Kf6 {[%clk 0:01:12]}  f2 {[%clk 0:00:07]} 68. Ke5 {[%clk 0:01:13]}  f1=Q {[%clk 0:00:07]} 1/2-1/2


[Site "https://www.chess.com"]

[Event "Titled Tuesday Blitz January 31 Early 2023"]
[White "Kakulidis, Ellen"]
[Black "Andreev, Konstantin"]
[WhiteFideId "1444972"]
[BlackFideId "24239305"]
[WhiteElo "2046"]
[BlackElo "2195"]
[Result "0-1"]
[Round "03"]
[TimeControl "180+2"]
[Date "2023.01.31"]
[WhiteClock "0:00:03"]
[BlackClock "0:00:46"]

1. d4 {[%clk 0:03:00]}  Nf6 {[%clk 0:02:59]} 2. c4 {[%clk 0:02:59]}  e6 {[%clk 0:02:59]} 3. Nf3 {[%clk 0:02:58]}  d5 {[%clk 0:02:59]} 4. g3 {[%clk 0:02:57]}  Bb4+ {[%clk 0:02:58]} 5. Bd2 {[%clk 0:02:53]}  a5 {[%clk 0:02:57]} 6. Bg2 {[%clk 0:02:51]}  O-O {[%clk 0:02:54]} 7. a3 {[%clk 0:02:44]}  Be7 {[%clk 0:02:54]} 8. Qc2 {[%clk 0:02:36]}  c6 {[%clk 0:02:52]} 9. O-O {[%clk 0:02:36]}  Nbd7 {[%clk 0:02:48]} 10. b3 {[%clk 0:02:15]}  b6 {[%clk 0:02:42]} 11. Bc3 {[%clk 0:02:15]}  Ba6 {[%clk 0:02:41]} 12. Nbd2 {[%clk 0:02:15]}  Qb8 {[%clk 0:02:34]} 13. e4 {[%clk 0:02:14]}  a4 {[%clk 0:02:25]} 14. e5 {[%clk 0:01:49]}  axb3 {[%clk 0:02:24]} 15. Qxb3 {[%clk 0:01:45]}  dxc4 {[%clk 0:02:24]} 16. Nxc4 {[%clk 0:01:42]}  Nd5 {[%clk 0:02:23]} 17. Rfd1 {[%clk 0:01:32]}  Bb5 {[%clk 0:02:12]} 18. Rd2 {[%clk 0:01:10]}  Qa7 {[%clk 0:02:03]} 19. Nb2 {[%clk 0:01:04]}  Bxa3 {[%clk 0:01:49]} 20. Nc4 {[%clk 0:00:43]}  Bxc4 {[%clk 0:01:41]} 21. Qxc4 {[%clk 0:00:44]}  Nxc3 {[%clk 0:01:41]} 22. Qxc3 {[%clk 0:00:43]}  Bb2 {[%clk 0:01:17]} 23. Rxa7 {[%clk 0:00:22]}  Bxc3 {[%clk 0:01:16]} 24. Rxa8 {[%clk 0:00:23]}  Rxa8 {[%clk 0:01:16]} 25. Rc2 {[%clk 0:00:21]}  Ra3 {[%clk 0:01:17]} 26. h4 {[%clk 0:00:17]}  b5 {[%clk 0:01:15]} 27. Ng5 {[%clk 0:00:15]}  b4 {[%clk 0:01:06]} 28. Bxc6 {[%clk 0:00:13]}  b3 {[%clk 0:01:05]} 29. Rxc3 {[%clk 0:00:08]}  b2 {[%clk 0:01:05]} 30. Rxa3 {[%clk 0:00:07]}  b1=Q+ {[%clk 0:01:05]} 31. Kg2 {[%clk 0:00:08]}  h6 {[%clk 0:00:53]} 32. Ra8+ {[%clk 0:00:08]}  Nf8 {[%clk 0:00:52]} 33. Ne4 {[%clk 0:00:05]}  Qb6 {[%clk 0:00:50]} 34. Rc8 {[%clk 0:00:04]}  Qxd4 {[%clk 0:00:49]} 35. Nd6 {[%clk 0:00:04]}  Qxe5 {[%clk 0:00:48]} 36. Nxf7 {[%clk 0:00:02]}  Kxf7 {[%clk 0:00:47]} 37. Be8+ {[%clk 0:00:03]}  Kg8 {[%clk 0:00:46]} 0-1


[Site "https://www.chess.com"]

[Event "Titled Tuesday Blitz January 31 Early 2023"]
[White "Ramirez Vido, Robert Yorisan"]
[Black "Wickramasinghe, Minethma Lasandi"]
[WhiteFideId "3513823"]
[BlackFideId "9966170"]
[WhiteElo "2015"]
[BlackElo "1483"]
[Result "1-0"]
[Round "03"]
[TimeControl "180+2"]
[Date "2023.01.31"]
[WhiteClock "0:00:21"]
[BlackClock "0:00:01"]

1. f4 {[%clk 0:03:00]}  d5 {[%clk 0:02:58]} 2. Nf3 {[%clk 0:02:56]}  c5 {[%clk 0:02:58]} 3. g3 {[%clk 0:02:43]}  Nc6 {[%clk 0:02:57]} 4. Bg2 {[%clk 0:02:42]}  g6 {[%clk 0:02:52]} 5. d3 {[%clk 0:02:42]}  Bg7 {[%clk 0:02:48]} 6. O-O {[%clk 0:02:43]}  Nf6 {[%clk 0:02:42]} 7. Qe1 {[%clk 0:02:43]}  O-O {[%clk 0:02:43]} 8. e4 {[%clk 0:02:44]}  dxe4 {[%clk 0:02:41]} 9. dxe4 {[%clk 0:02:45]}  Qc7 {[%clk 0:02:37]} 10. Nc3 {[%clk 0:02:42]}  Rd8 {[%clk 0:02:29]} 11. e5 {[%clk 0:02:39]}  Nd5 {[%clk 0:02:28]} 12. Nxd5 {[%clk 0:02:39]}  Rxd5 {[%clk 0:02:28]} 13. Ng5 {[%clk 0:02:39]}  Rd8 {[%clk 0:02:22]} 14. Be3 {[%clk 0:02:38]}  b6 {[%clk 0:02:19]} 15. Rd1 {[%clk 0:02:29]}  Bb7 {[%clk 0:02:20]} 16. Qf2 {[%clk 0:02:28]}  Nb4 {[%clk 0:02:06]} 17. a3 {[%clk 0:02:20]}  Nd5 {[%clk 0:01:59]} 18. Bc1 {[%clk 0:02:14]}  c4 {[%clk 0:01:52]} 19. f5 {[%clk 0:01:47]}  f6 {[%clk 0:01:33]} 20. Ne6 {[%clk 0:01:46]}  Qxe5 {[%clk 0:01:23]} 21. Nxd8 {[%clk 0:01:44]}  Rxd8 {[%clk 0:01:23]} 22. fxg6 {[%clk 0:01:42]}  hxg6 {[%clk 0:01:22]} 23. Rfe1 {[%clk 0:01:38]}  Qc7 {[%clk 0:01:12]} 24. Qf3 {[%clk 0:01:31]}  e5 {[%clk 0:01:02]} 25. Qg4 {[%clk 0:01:25]}  Qf7 {[%clk 0:00:50]} 26. c3 {[%clk 0:01:22]}  b5 {[%clk 0:00:44]} 27. Re2 {[%clk 0:01:18]}  f5 {[%clk 0:00:25]} 28. Qh4 {[%clk 0:01:14]}  Bf6 {[%clk 0:00:22]} 29. Bg5 {[%clk 0:01:15]}  Kg7 {[%clk 0:00:19]} 30. Qh6+ {[%clk 0:01:11]}  Kg8 {[%clk 0:00:19]} 31. Red2 {[%clk 0:01:09]}  e4 {[%clk 0:00:18]} 32. Qh4 {[%clk 0:01:01]}  Bxg5 {[%clk 0:00:16]} 33. Qxg5 {[%clk 0:01:01]}  Rd7 {[%clk 0:00:16]} 34. h4 {[%clk 0:00:48]}  Bc6 {[%clk 0:00:16]} 35. h5 {[%clk 0:00:48]}  Kh7 {[%clk 0:00:16]} 36. Bf1 {[%clk 0:00:42]}  gxh5 {[%clk 0:00:15]} 37. Rh2 {[%clk 0:00:41]}  Qg6 {[%clk 0:00:14]} 38. Rxh5+ {[%clk 0:00:41]}  Kg7 {[%clk 0:00:14]} 39. Qxf5 {[%clk 0:00:38]}  Qxf5 {[%clk 0:00:12]} 40. Rxf5 {[%clk 0:00:38]}  Kg6 {[%clk 0:00:11]} 41. Re5 {[%clk 0:00:35]}  e3 {[%clk 0:00:10]} 42. Be2 {[%clk 0:00:30]}  Kf6 {[%clk 0:00:10]} 43. Rh5 {[%clk 0:00:27]}  Re7 {[%clk 0:00:08]} 44. Rdxd5 {[%clk 0:00:26]}  Bxd5 {[%clk 0:00:07]} 45. Rxd5 {[%clk 0:00:27]}  a6 {[%clk 0:00:05]} 46. Kg2 {[%clk 0:00:24]}  Ke6 {[%clk 0:00:04]} 47. Rd4 {[%clk 0:00:23]}  Kf5 {[%clk 0:00:03]} 48. Rf4+ {[%clk 0:00:23]}  Kg5 {[%clk 0:00:03]} 49. Kf3 {[%clk 0:00:23]}  Re6 {[%clk 0:00:02]} 50. Rg4+ {[%clk 0:00:23]}  Kf6 {[%clk 0:00:01]} 51. Re4 {[%clk 0:00:22]}  Rd6 {[%clk 0:00:01]} 52. Kxe3 {[%clk 0:00:21]} 1-0


[Site "https://www.chess.com"]

[Event "Titled Tuesday Blitz January 31 Early 2023"]
[White "Nakamura, Hikaru"]
[Black "Baskakov, Egor"]
[WhiteFideId "2016192"]
[BlackFideId "24197866"]
[WhiteElo "2775"]
[BlackElo "2215"]
[Result "1-0"]
[Round "04"]
[TimeControl "180+2"]
[Date "2023.01.31"]
[WhiteClock "0:00:19"]
[BlackClock "0:00:12"]

1. Nf3 {[%clk 0:03:00]}  Nf6 {[%clk 0:02:59]} 2. g3 {[%clk 0:02:59]}  e6 {[%clk 0:03:00]} 3. Bg2 {[%clk 0:02:57]}  d5 {[%clk 0:03:00]} 4. b3 {[%clk 0:02:57]}  Be7 {[%clk 0:03:01]} 5. Bb2 {[%clk 0:02:57]}  O-O {[%clk 0:03:01]} 6. O-O {[%clk 0:02:58]}  b6 {[%clk 0:03:02]} 7. e3 {[%clk 0:02:57]}  Bb7 {[%clk 0:03:02]} 8. Qe2 {[%clk 0:02:57]}  Nbd7 {[%clk 0:02:58]} 9. c4 {[%clk 0:02:54]}  c5 {[%clk 0:02:58]} 10. cxd5 {[%clk 0:02:50]}  Nxd5 {[%clk 0:02:57]} 11. d4 {[%clk 0:02:50]}  Rc8 {[%clk 0:02:53]} 12. Rd1 {[%clk 0:02:42]}  Qc7 {[%clk 0:02:53]} 13. e4 {[%clk 0:02:22]}  Nb4 {[%clk 0:02:51]} 14. Nc3 {[%clk 0:02:09]}  Ba6 {[%clk 0:02:49]} 15. Nb5 {[%clk 0:02:07]}  Qc6 {[%clk 0:02:40]} 16. a4 {[%clk 0:02:06]}  Rfe8 {[%clk 0:02:16]} 17. Rac1 {[%clk 0:01:57]}  Qb7 {[%clk 0:02:04]} 18. e5 {[%clk 0:01:57]}  Qb8 {[%clk 0:01:54]} 19. h4 {[%clk 0:01:52]}  h6 {[%clk 0:01:53]} 20. h5 {[%clk 0:01:50]}  Bb7 {[%clk 0:01:53]} 21. dxc5 {[%clk 0:01:43]}  Nxc5 {[%clk 0:01:50]} 22. Nd6 {[%clk 0:01:43]}  Bxd6 {[%clk 0:01:23]} 23. exd6 {[%clk 0:01:44]}  Rcd8 {[%clk 0:01:23]} 24. Be5 {[%clk 0:00:41]}  Qa8 {[%clk 0:01:14]} 25. Rc4 {[%clk 0:00:32]}  Nd5 {[%clk 0:01:00]} 26. Rg4 {[%clk 0:00:21]}  f6 {[%clk 0:01:00]} 27. Qc2 {[%clk 0:00:19]}  Rd7 {[%clk 0:00:37]} 28. b4 {[%clk 0:00:20]}  fxe5 {[%clk 0:00:30]} 29. bxc5 {[%clk 0:00:20]}  bxc5 {[%clk 0:00:29]} 30. Nxe5 {[%clk 0:00:20]}  Qd8 {[%clk 0:00:21]} 31. Nxd7 {[%clk 0:00:19]}  Qxd7 {[%clk 0:00:22]} 32. Qxc5 {[%clk 0:00:20]}  Rc8 {[%clk 0:00:17]} 33. Qd4 {[%clk 0:00:19]}  e5 {[%clk 0:00:11]} 34. Bxd5+ {[%clk 0:00:19]}  Kh8 {[%clk 0:00:12]} 35. Qe4 {[%clk 0:00:18]}  Bxd5 {[%clk 0:00:12]} 36. Rxd5 {[%clk 0:00:19]} 1-0


[Site "https://www.chess.com"]

[Event "Titled Tuesday Blitz January 31 Early 2023"]
[White "Kravtsiv, Martyn"]
[Black "Le, Tuan Minh"]
[WhiteFideId "14113147"]
[BlackFideId "12401153"]
[WhiteElo "2598"]
[BlackElo "2542"]
[Result "1-0"]
[Round "04"]
[TimeControl "180+2"]
[Date "2023.01.31"]
[WhiteClock "0:00:06"]
[BlackClock "0:00:03"]

1. e4 {[%clk 0:03:00]}  c5 {[%clk 0:02:59]} 2. Nf3 {[%clk 0:03:00]}  Nf6 {[%clk 0:03:00]} 3. Nc3 {[%clk 0:02:57]}  d5 {[%clk 0:03:00]} 4. exd5 {[%clk 0:02:54]}  Nxd5 {[%clk 0:03:01]} 5. Bb5+ {[%clk 0:02:54]}  Bd7 {[%clk 0:03:01]} 6. Ne5 {[%clk 0:02:53]}  Nf6 {[%clk 0:03:01]} 7. Qf3 {[%clk 0:02:51]}  Qc8 {[%clk 0:03:01]} 8. a4 {[%clk 0:02:50]}  e6 {[%clk 0:02:56]} 9. d3 {[%clk 0:02:49]}  Be7 {[%clk 0:02:31]} 10. O-O {[%clk 0:02:46]}  O-O {[%clk 0:02:31]} 11. Bg5 {[%clk 0:02:45]}  a6 {[%clk 0:02:22]} 12. Bxd7 {[%clk 0:02:44]}  Nbxd7 {[%clk 0:02:23]} 13. Nc4 {[%clk 0:02:44]}  b6 {[%clk 0:02:15]} 14. Rfe1 {[%clk 0:02:35]}  h6 {[%clk 0:02:13]} 15. Bf4 {[%clk 0:02:30]}  Qd8 {[%clk 0:01:31]} 16. h3 {[%clk 0:02:22]}  Re8 {[%clk 0:01:29]} 17. Qb7 {[%clk 0:01:54]}  Qc8 {[%clk 0:01:28]} 18. Qxc8 {[%clk 0:01:50]}  Raxc8 {[%clk 0:01:29]} 19. Bg3 {[%clk 0:01:36]}  Rc6 {[%clk 0:01:26]} 20. Re2 {[%clk 0:01:34]}  Bd8 {[%clk 0:01:22]} 21. Ne4 {[%clk 0:01:23]}  Bc7 {[%clk 0:01:15]} 22. Nxf6+ {[%clk 0:01:21]}  gxf6 {[%clk 0:01:16]} 23. Bxc7 {[%clk 0:01:19]}  Rxc7 {[%clk 0:01:17]} 24. f4 {[%clk 0:01:17]}  f5 {[%clk 0:01:14]} 25. Ne5 {[%clk 0:01:03]}  Nxe5 {[%clk 0:01:00]} 26. Rxe5 {[%clk 0:01:00]}  c4 {[%clk 0:01:01]} 27. d4 {[%clk 0:00:59]}  c3 {[%clk 0:01:01]} 28. b3 {[%clk 0:00:44]}  Rd8 {[%clk 0:01:00]} 29. Rd1 {[%clk 0:00:45]}  Rcd7 {[%clk 0:00:59]} 30. d5 {[%clk 0:00:45]}  b5 {[%clk 0:00:40]} 31. axb5 {[%clk 0:00:42]}  axb5 {[%clk 0:00:41]} 32. Kf2 {[%clk 0:00:41]}  Kg7 {[%clk 0:00:36]} 33. Rd3 {[%clk 0:00:36]}  b4 {[%clk 0:00:34]} 34. Ke3 {[%clk 0:00:31]}  Kf6 {[%clk 0:00:23]} 35. Rd4 {[%clk 0:00:31]}  Rg8 {[%clk 0:00:19]} 36. Kf3 {[%clk 0:00:27]}  Ra8 {[%clk 0:00:19]} 37. Rxb4 {[%clk 0:00:26]}  Ra2 {[%clk 0:00:19]} 38. dxe6 {[%clk 0:00:22]}  fxe6 {[%clk 0:00:20]} 39. Rb6 {[%clk 0:00:18]}  Rxc2 {[%clk 0:00:19]} 40. Rexe6+ {[%clk 0:00:16]}  Kg7 {[%clk 0:00:19]} 41. Rg6+ {[%clk 0:00:16]}  Kf7 {[%clk 0:00:18]} 42. Rbf6+ {[%clk 0:00:16]}  Ke7 {[%clk 0:00:18]} 43. Re6+ {[%clk 0:00:16]}  Kf7 {[%clk 0:00:18]} 44. Rgf6+ {[%clk 0:00:16]}  Kg7 {[%clk 0:00:19]} 45. Rg6+ {[%clk 0:00:16]}  Kf7 {[%clk 0:00:18]} 46. Ref6+ {[%clk 0:00:15]}  Ke7 {[%clk 0:00:19]} 47. Rxf5 {[%clk 0:00:16]}  Rd3+ {[%clk 0:00:10]} 48. Ke4 {[%clk 0:00:15]}  Rcd2 {[%clk 0:00:10]} 49. Rg7+ {[%clk 0:00:12]}  Kd6 {[%clk 0:00:10]} 50. Rf6+ {[%clk 0:00:11]}  Kc5 {[%clk 0:00:10]} 51. Rc7+ {[%clk 0:00:11]}  Kb4 {[%clk 0:00:11]} 52. Rb6+ {[%clk 0:00:10]}  Ka3 {[%clk 0:00:11]} 53. f5 {[%clk 0:00:09]}  Kb2 {[%clk 0:00:10]} 54. Rbc6 {[%clk 0:00:09]}  Rg3 {[%clk 0:00:07]} 55. f6 {[%clk 0:00:08]}  Rdxg2 {[%clk 0:00:07]} 56. f7 {[%clk 0:00:07]}  Rf2 {[%clk 0:00:07]} 57. Ke5 {[%clk 0:00:07]}  Re3+ {[%clk 0:00:06]} 58. Kd6 {[%clk 0:00:07]}  Rd3+ {[%clk 0:00:06]} 59. Ke7 {[%clk 0:00:07]}  Re3+ {[%clk 0:00:06]} 60. Kd8 {[%clk 0:00:07]}  Ref3 {[%clk 0:00:05]} 61. Ke8 {[%clk 0:00:07]}  Re3+ {[%clk 0:00:05]} 62. Re7 {[%clk 0:00:07]}  Ref3 {[%clk 0:00:03]} 63. b4 {[%clk 0:00:07]}  c2 {[%clk 0:00:03]} 64. Rec7 {[%clk 0:00:07]}  Re3+ {[%clk 0:00:03]} 65. Kd8 {[%clk 0:00:07]}  Rd2+ {[%clk 0:00:03]} 66. Kc8 {[%clk 0:00:07]}  Rf3 {[%clk 0:00:03]} 67. b5 {[%clk 0:00:06]}  Kb3 {[%clk 0:00:02]} 68. b6 {[%clk 0:00:07]}  Rdf2 {[%clk 0:00:02]} 69. b7 {[%clk 0:00:06]}  Ka2 {[%clk 0:00:02]} 70. Rxc2+ {[%clk 0:00:06]}  Rxc2 {[%clk 0:00:02]} 71. Rxc2+ {[%clk 0:00:06]}  Kb3 {[%clk 0:00:03]} 72. Rc7 {[%clk 0:00:06]} 1-0


[Site "https://www.chess.com"]

[Event "Titled Tuesday Blitz January 31 Early 2023"]
[White "Vakhlamov, Igor L."]
[Black "Korobov, Anton"]
[WhiteFideId "24126748"]
[BlackFideId "14105730"]
[WhiteElo "2413"]
[BlackElo "2664"]
[Result "1-0"]
[Round "04"]
[TimeControl "180+2"]
[Date "2023.01.31"]
[WhiteClock "0:00:05"]
[BlackClock "0:00:05"]

1. e4 {[%clk 0:02:58]}  c5 {[%clk 0:03:00]} 2. Nf3 {[%clk 0:02:59]}  d6 {[%clk 0:03:00]} 3. Nc3 {[%clk 0:02:59]}  Nf6 {[%clk 0:03:00]} 4. d4 {[%clk 0:03:00]}  cxd4 {[%clk 0:02:59]} 5. Qxd4 {[%clk 0:03:00]}  a6 {[%clk 0:02:53]} 6. e5 {[%clk 0:03:00]}  Nc6 {[%clk 0:02:53]} 7. Qa4 {[%clk 0:03:00]}  Ng4 {[%clk 0:02:53]} 8. Bb5 {[%clk 0:02:54]}  Nxe5 {[%clk 0:02:36]} 9. Nxe5 {[%clk 0:02:54]}  dxe5 {[%clk 0:02:37]} 10. Bxc6+ {[%clk 0:02:52]}  bxc6 {[%clk 0:02:38]} 11. Be3 {[%clk 0:02:51]}  e6 {[%clk 0:02:19]} 12. Qxc6+ {[%clk 0:02:33]}  Bd7 {[%clk 0:02:19]} 13. Qe4 {[%clk 0:02:32]}  f6 {[%clk 0:02:13]} 14. O-O-O {[%clk 0:02:05]}  Rc8 {[%clk 0:02:11]} 15. Qb7 {[%clk 0:01:23]}  Qc7 {[%clk 0:02:07]} 16. Qxa6 {[%clk 0:01:21]}  Bb4 {[%clk 0:01:54]} 17. Rd3 {[%clk 0:01:20]}  O-O {[%clk 0:01:47]} 18. Rhd1 {[%clk 0:01:19]}  Ra8 {[%clk 0:01:21]} 19. Qb6 {[%clk 0:00:32]}  Qxb6 {[%clk 0:01:16]} 20. Bxb6 {[%clk 0:00:33]}  Bc6 {[%clk 0:01:17]} 21. f3 {[%clk 0:00:31]}  Rfc8 {[%clk 0:01:06]} 22. a3 {[%clk 0:00:30]}  Be7 {[%clk 0:01:01]} 23. Ne4 {[%clk 0:00:20]}  Bb5 {[%clk 0:00:31]} 24. Rc3 {[%clk 0:00:18]}  f5 {[%clk 0:00:25]} 25. Rxc8+ {[%clk 0:00:16]}  Rxc8 {[%clk 0:00:26]} 26. Nd6 {[%clk 0:00:16]}  Rc6 {[%clk 0:00:20]} 27. Nxb5 {[%clk 0:00:15]}  Rxb6 {[%clk 0:00:20]} 28. a4 {[%clk 0:00:14]}  Kf7 {[%clk 0:00:19]} 29. c4 {[%clk 0:00:14]}  g5 {[%clk 0:00:18]} 30. Kc2 {[%clk 0:00:14]}  Kf6 {[%clk 0:00:17]} 31. Kc3 {[%clk 0:00:14]}  e4 {[%clk 0:00:17]} 32. fxe4 {[%clk 0:00:15]}  fxe4 {[%clk 0:00:17]} 33. b4 {[%clk 0:00:16]}  Ke5 {[%clk 0:00:16]} 34. c5 {[%clk 0:00:16]}  Rc6 {[%clk 0:00:17]} 35. a5 {[%clk 0:00:13]}  e3 {[%clk 0:00:16]} 36. Kd3 {[%clk 0:00:12]}  Rc8 {[%clk 0:00:14]} 37. Nd4 {[%clk 0:00:10]}  g4 {[%clk 0:00:10]} 38. Kxe3 {[%clk 0:00:10]}  Bg5+ {[%clk 0:00:10]} 39. Ke2 {[%clk 0:00:10]}  Ke4 {[%clk 0:00:09]} 40. a6 {[%clk 0:00:10]}  Bf6 {[%clk 0:00:07]} 41. Nb5 {[%clk 0:00:08]}  Be5 {[%clk 0:00:06]} 42. a7 {[%clk 0:00:07]}  Bxh2 {[%clk 0:00:06]} 43. Rd7 {[%clk 0:00:05]}  Bg3 {[%clk 0:00:05]} 44. Nc7 {[%clk 0:00:05]} 1-0


[Site "https://www.chess.com"]